bitfinex/quotes_SOLUSD_20220302
["timestamp","ask_amount","ask_price","bid_price","bid_amount"]
[1646193844891,80.58770231,104.39,104.28,158.27618176]
[1646193844892,76.75470231,104.39,104.28,158.27618176]
[1646193845095,75.45470231,104.39,104.28,158.27618176]
[1646193845692,113.15875066,104.39,104.28,158.27618176]
[1646193845892,210.11287544,104.39,104.28,158.27618176]
[1646193846096,221.65287544,104.39,104.28,158.27618176]
[1646193846293,221.65287544,104.39,104.28,143.89808176]
[1646193846294,23.91298872,104.38,104.28,143.89808176]
[1646193846496,13.82309977,104.37,104.28,143.89808176]
[1646193846693,23.73210424,104.38,104.28,47.54808176]
[1646193846993,87.20450786,104.39,104.28,47.54808176]
[1646193847194,87.20450786,104.39,104.28,53.46708176]
[1646193847395,75.06038308,104.39,104.28,164.19558176]
[1646193847900,41.61939712,104.39,104.28,164.19558176]
[1646193848102,41.61939712,104.39,104.28,67.84558176]
[1646193848495,41.61939712,104.39,104.28,61.92658176]
[1646193848896,41.61939712,104.39,104.28,66.92658176]
[1646193849896,41.61939712,104.39,104.28,61.92658176]
[1646193850097,26.68868308,104.39,104.28,61.92658176]
[1646193850499,26.68868308,104.39,104.28,66.92658176]
[1646193851202,75.35315929,104.39,104.28,66.92658176]
[1646193851401,97.14185514,104.39,104.28,66.92658176]
[1646193851600,97.14185514,104.39,104.28,61.92658176]
[1646193851802,0.17127672,104.38,104.28,61.92658176]
[1646193852101,97.14185514,104.39,104.28,61.92658176]
[1646193852102,74.74903451,104.39,104.28,61.92658176]
[1646193852801,26.68868308,104.39,104.28,61.92658176]
[1646193853606,26.68868308,104.39,104.28,158.27658176]
[1646193853806,99.29783661,104.43,104.28,215.93658176]
[1646193854102,97.444,104.43,104.28,227.47658176]
[1646193854303,73.0499,104.43,104.29,0.27025293]
[1646193854505,73.0499,104.43,104.34,14.3669]
[1646193854707,77.3763,104.44,104.34,21.2389]
[1646193854903,50.04653625,104.46,104.34,21.2389]
[1646193855103,50.04653625,104.46,104.35,20.58608704]
[1646193855303,50.04653625,104.46,104.35,25.58608704]
[1646193856103,29.20502029,104.45,104.35,25.58608704]
[1646193856314,34.62530916,104.45,104.35,25.58608704]
[1646193856507,51.28845941,104.43,104.35,20.58608704]
[1646193856710,2.39523674,104.45,104.35,20.58608704]
[1646193856905,13.26875405,104.45,104.35,20.58608704]
[1646193857105,13.26875405,104.45,104.35,116.93608704]
[1646193857305,13.26875405,104.45,104.35,174.59608704]
[1646193857505,50.01537025,104.46,104.35,174.59608704]
[1646193857707,104.95189752,104.46,104.35,182.71408704]
[1646193858109,50.01537025,104.46,104.35,197.08348704]
[1646193858910,48.011,104.46,104.35,197.08348704]
[1646193859109,48.011,104.46,104.35,202.08348704]
[1646193860116,48.011,104.46,104.35,197.08348704]
[1646193860310,48.011,104.46,104.35,188.96548704]
[1646193860712,48.011,104.46,104.38,61.91428176]
[1646193860912,61.32270226,104.48,104.38,215.92428176]
[1646193861111,11.54,104.48,104.38,215.92428176]
[1646193862111,57.03147641,104.48,104.38,215.92428176]
[1646193862538,202.54169105,104.49,104.38,215.92428176]
[1646193862735,204.47190463,104.49,104.38,215.92428176]
[1646193862941,203.88501358,104.49,104.38,215.92428176]
[1646193863336,203.88501358,104.49,104.38,220.92428176]
[1646193864139,201.9548,104.49,104.38,220.92428176]
[1646193864335,201.9548,104.49,104.41,101.35]
[1646193864536,22.6127,104.49,104.42,14.3607]
[1646193865435,22.6127,104.49,104.43,116.93608704]
[1646193865836,24.879,104.52,104.43,131.29518704]
[1646193866239,24.879,104.52,104.43,188.95518704]
[1646193866838,24.379,104.52,104.43,188.95518704]
[1646193867237,24.379,104.52,104.43,131.29518704]
[1646193867437,24.379,104.52,104.43,193.95518704]
[1646193867637,58.72533467,104.52,104.43,193.95518704]
[1646193867837,58.72533467,104.52,104.43,136.29518704]
[1646193868038,60.48057393,104.52,104.43,20.58608704]
[1646193868239,0.1893254,104.51,104.43,20.58608704]
[1646193868743,0.25194278,104.51,104.43,20.58608704]
[1646193868938,14.61514278,104.51,104.43,20.58608704]
[1646193869142,43.86949653,104.5,104.43,20.58608704]
[1646193869740,45.74117904,104.5,104.43,20.58608704]
[1646193869940,60.10577904,104.5,104.43,20.58608704]
[1646193870241,62.65481907,104.5,104.43,20.58608704]
[1646193870441,170.54481907,104.5,104.36,47.8858]
[1646193870641,2.79633644,104.49,104.37,5.0]
[1646193870840,11.54,104.48,104.37,5.0]
[1646193871041,28.91581836,104.48,104.37,19.3675]
[1646193871342,36.22647665,104.47,104.38,58.60324532]
[1646193873042,50.59527665,104.47,104.38,58.60324532]
[1646193874345,50.59527665,104.47,104.38,121.26324532]
[1646193874542,50.59527665,104.47,104.38,169.31974532]
[1646193874543,34.34633467,104.47,104.38,169.31974532]
[1646193874744,14.3665,104.49,104.38,226.97974532]
[1646193874943,28.54830135,104.5,104.38,226.97974532]
[1646193875143,26.21084324,104.5,104.38,231.97974532]
[1646193875443,26.21084324,104.5,104.38,226.97974532]
[1646193875644,74.68504941,104.5,104.4,101.35]
[1646193875842,74.68504941,104.5,104.41,23.89342348]
[1646193876242,74.68504941,104.5,104.41,120.24342348]
[1646193876444,72.63050617,104.5,104.41,120.24342348]
[1646193877044,24.1563,104.5,104.41,120.24342348]
[1646193877444,24.1563,104.5,104.41,177.90342348]
[1646193877758,5.1261388,104.53,104.41,177.90342348]
[1646193877946,342.46640726,104.54,104.41,186.69842348]
[1646193878147,59.97136738,104.53,104.41,198.23842348]
[1646193879146,59.97136738,104.53,104.41,189.44342348]
[1646193879349,59.97136738,104.53,104.43,154.01]
[1646193879549,31.90732405,104.54,104.45,14.3569]
[1646193879850,3.827,104.56,104.45,168.3669]
[1646193880047,5.0,104.58,104.47,5.0]
[1646193880251,5.0,104.58,104.47,174.536]
[1646193880449,10.0,104.6,104.47,177.08504003]
[1646193880649,59.46197002,104.59,104.47,177.08504003]
[1646193881050,59.46197002,104.59,104.5,110.6958]
[1646193881549,59.46197002,104.59,104.5,14.3458]
[1646193881950,61.38553768,104.59,104.5,14.3458]
[1646193882347,61.57103286,104.59,104.5,14.3458]
[1646193882548,97.26846626,104.59,104.48,14.3538]
[1646193882749,193.61846626,104.59,104.48,14.3538]
[1646193882948,146.00329551,104.57,104.48,14.3538]
[1646193883250,49.46283253,104.57,104.48,14.3538]
[1646193883647,0.2157993,104.56,104.48,14.3538]
[1646193883849,49.64832771,104.57,104.48,14.3538]
[1646193884050,0.19747277,104.56,104.46,14.3562]
[1646193884248,0.19747277,104.56,104.44,5.0]
[1646193884249,151.85728732,104.54,104.44,5.0]
[1646193884447,69.06816602,104.54,104.4,2.54904003]
[1646193884651,55.25283646,104.54,104.42,57.66]
[1646193885048,55.25283646,104.54,104.43,64.03704003]
[1646193885248,55.25283646,104.54,104.44,154.01]
[1646193885448,55.25283646,104.54,104.46,14.3562]
[1646193886450,55.25283646,104.54,104.46,168.3662]
[1646193886651,55.25283646,104.54,104.46,14.3562]
[1646193887255,55.25283646,104.54,104.44,14.3588]
[1646193887451,173.72450166,104.54,104.44,5.0]
[1646193887655,0.23506494,104.53,104.44,5.0]
[1646193887852,11.54,104.52,104.44,5.0]
[1646193888052,54.35747897,104.51,104.44,5.0]
[1646193888251,54.35747897,104.51,104.43,3.828]
[1646193888453,14.3611,104.53,104.43,157.838]
[1646193888656,11.54,104.55,104.43,157.838]
[1646193888856,11.54,104.56,104.43,166.71804003]
[1646193889054,24.485,104.57,104.43,166.71804003]
[1646193889254,24.485,104.57,104.45,57.66]
[1646193889454,77.76644862,104.57,104.47,154.01]
[1646193889654,53.28144862,104.57,104.47,154.01]
[1646193890054,53.28144862,104.57,104.47,156.55904003]
[1646193890253,53.28144862,104.57,104.49,57.66]
[1646193890653,53.28144862,104.57,104.49,154.01]
[1646193890854,130.4233,104.6,104.49,154.01]
[1646193891355,130.4233,104.6,104.49,96.35]
[1646193891555,131.99700938,104.6,104.49,96.35]
[1646193891752,53.73396169,104.59,104.49,96.35]
[1646193892157,53.73396169,104.59,104.5,14.3486]
[1646193892764,59.31865239,104.59,104.5,14.3486]
[1646193892958,151.84265239,104.59,104.5,14.3486]
[1646193893157,12.04170585,104.58,104.48,19.3532]
[1646193893459,0.50170585,104.56,104.48,14.3532]
[1646193893655,51.78430349,104.57,104.48,14.3532]
[1646193894456,0.18727054,104.56,104.48,14.3532]
[1646193894656,53.81281015,104.57,104.48,14.3532]
[1646193895056,68.16821015,104.57,104.48,14.3532]
[1646193895256,66.13970349,104.57,104.48,14.3532]
[1646193896156,51.78430349,104.57,104.48,168.3632]
[1646193897257,38.24509003,104.59,104.48,168.3632]
[1646193897461,23.89219003,104.59,104.48,168.3632]
[1646193897666,57.9394,104.6,104.48,176.52824003]
[1646193897860,10.0,104.6,104.54,96.35]
[1646193898257,10.0,104.6,104.54,154.01]
[1646193898459,10.0,104.6,104.53,144.1596]
[1646193898661,10.0,104.6,104.53,47.8096]
[1646193898860,10.0,104.6,104.55,14.3429]
[1646193899060,10.0,104.6,104.49,11.54]
[1646193899460,10.0,104.6,104.5,154.01]
[1646193899660,10.0,104.6,104.5,170.55]
[1646193899860,10.0,104.6,104.5,165.55]
[1646193900064,10.0,104.6,104.53,14.3467]
[1646193900662,53.26112943,104.59,104.5,96.35]
[1646193900863,53.26112943,104.59,104.48,11.54]
[1646193901063,53.26112943,104.59,104.51,14.3492]
[1646193903468,0.63021915,104.58,104.49,19.3509]
[1646193903669,43.62950987,104.57,104.49,14.3509]
[1646193904867,24.3515,104.6,104.49,110.7009]
[1646193905070,49.13247507,104.6,104.49,110.7009]
[1646193905970,33.0515,104.6,104.49,168.3609]
[1646193906170,33.0515,104.6,104.51,154.01]
[1646193906371,33.0515,104.6,104.52,168.3567]
[1646193906573,10.0,104.6,104.52,168.3567]
[1646193906972,10.0,104.6,104.52,179.8967]
[1646193907577,2.95922285,104.6,104.55,154.01]
[1646193907782,1.2971388,104.66,104.57,154.01]
[1646193907980,5.1221388,104.68,104.57,154.01]
[1646193908176,3.825,104.68,104.57,165.55]
[1646193908677,117.71010347,104.69,104.57,165.55]
[1646193908877,115.89203653,104.69,104.57,165.55]
[1646193909078,69.3028,104.69,104.6,96.35]
[1646193909981,69.3028,104.69,104.61,14.335]
[1646193910388,46.93350854,104.68,104.61,14.335]
[1646193910586,0.21574908,104.67,104.59,5.0]
[1646193910987,16.36635931,104.67,104.57,28.4002]
[1646193911186,48.43749979,104.66,104.57,14.0596]
[1646193911400,48.43749979,104.66,104.57,110.4096]
[1646193911599,16.13421455,104.67,104.57,110.4096]
[1646193912005,14.3411,104.67,104.58,110.6899]
[1646193912201,112.19137306,104.69,104.58,110.6899]
[1646193912401,73.1258,104.69,104.58,110.6899]
[1646193912601,125.68503898,104.69,104.6,96.35]
[1646193913004,125.68503898,104.69,104.6,154.01]
[1646193913202,69.3028,104.69,104.61,110.6851]
[1646193913403,259.58868932,104.73,104.62,154.01]
[1646193913604,99.37245052,104.73,104.62,213.3174]
[1646193913801,76.4487,104.73,104.62,213.3174]
[1646193915004,63.1299,104.75,104.65,96.35]
[1646193915203,47.7996,104.75,104.65,161.193]
[1646193915403,116.719,104.76,104.67,154.01]
[1646193915605,50.28022937,104.77,104.67,154.01]
[1646193915803,59.49425385,104.75,104.67,154.01]
[1646193916406,59.49425385,104.75,104.68,14.3254]
[1646193916605,59.49425385,104.75,104.66,5.0]
[1646193917005,59.49425385,104.75,104.66,101.35]
[1646193917206,59.49425385,104.75,104.66,96.35]
[1646193917406,59.49425385,104.75,104.66,159.01]
[1646193917806,59.49425385,104.75,104.66,154.01]
[1646193918005,59.49425385,104.75,104.66,168.3382]
[1646193918707,59.49425385,104.75,104.66,71.9882]
[1646193918907,0.26185771,104.74,104.66,14.3282]
[1646193919108,59.49425385,104.75,104.66,14.3282]
[1646193919307,0.25588534,104.74,104.64,14.3302]
[1646193919711,61.50793452,104.75,104.64,14.3302]
[1646193920010,59.49425385,104.75,104.64,168.3402]
[1646193920211,40.39357926,104.77,104.64,168.3402]
[1646193920813,136.74357926,104.77,104.64,168.3402]
[1646193921011,136.74357926,104.77,104.64,14.3302]
[1646193921213,0.28004521,104.76,104.64,14.3302]
[1646193921612,88.67830316,104.77,104.64,14.3302]
[1646193922012,88.67830316,104.77,104.65,154.01]
[1646193922212,88.67830316,104.77,104.66,14.3273]
[1646193922413,185.02830316,104.77,104.66,14.3273]
[1646193922613,88.67830316,104.77,104.66,168.3373]
[1646193922814,88.67830316,104.77,104.66,14.3273]
[1646193923017,88.67830316,104.77,104.66,168.3373]
[1646193923213,48.5911,104.78,104.66,168.3373]
[1646193923417,49.6018791,104.82,104.67,0.1150612]
[1646193923418,3.819,104.81,104.67,0.1150612]
[1646193923616,3.819,104.81,104.68,159.01]
[1646193923817,3.819,104.81,104.71,71.9796]
[1646193924016,46.9304,104.82,104.71,168.3296]
[1646193924017,50.7484,104.82,104.71,168.3296]
[1646193924316,50.53789154,104.81,104.71,14.3196]
[1646193925117,52.33880289,104.81,104.71,14.3196]
[1646193925316,50.53789154,104.81,104.71,168.3296]
[1646193925517,5.0,104.83,104.71,168.3296]
[1646193925717,5.5943583,104.84,104.71,176.5596]
[1646193925920,0.4792195,104.84,104.72,2.54904003]
[1646193926118,0.4792195,104.84,104.75,14.312]
[1646193926317,0.4792195,104.84,104.75,23.024]
[1646193926517,0.4792195,104.84,104.76,5.0]
[1646193926918,0.4792195,104.84,104.75,119.15104003]
[1646193927117,0.4792195,104.84,104.78,5.0]
[1646193927319,0.4792195,104.84,104.79,14.3094]
[1646193927719,126.2308,104.92,104.79,14.3094]
[1646193927720,3.815,104.91,104.79,14.3094]
[1646193927918,128.47517233,104.92,104.79,25.8494]
[1646193928121,75.09017481,104.92,104.79,122.1994]
[1646193928521,73.5295,104.92,104.79,124.74844003]
[1646193929120,73.5295,104.92,104.81,5.0]
[1646193929320,73.57339132,104.93,104.84,14.303]
[1646193929720,73.47868103,104.93,104.84,14.303]
[1646193930121,46.48288024,104.92,104.84,14.303]
[1646193930822,73.51510042,104.93,104.84,14.303]
[1646193931124,47.6809,104.97,104.84,14.303]
[1646193931125,3.813,104.97,104.85,0.24658868]
[1646193931326,83.1704,104.98,104.85,11.78658868]
[1646193931520,88.57893014,104.98,104.88,14.2953]
[1646193931725,48.41448347,104.97,104.88,14.2953]
[1646193931924,64.6486572,104.97,104.84,47.6615]
[1646193932223,68.4596572,104.97,104.84,5.0]
[1646193932424,73.4596572,104.97,104.84,5.0]
[1646193932622,0.34595638,104.96,104.84,19.3026]
[1646193932822,60.91888233,104.94,104.84,19.3026]
[1646193933023,62.5000642,104.94,104.84,19.3026]
[1646193933223,62.5000642,104.94,104.84,14.3026]
[1646193933422,0.19489882,104.93,104.81,71.0506]
[1646193933625,62.5000642,104.94,104.81,71.0506]
[1646193933824,62.5000642,104.94,104.82,9.305]
[1646193934036,2.54904003,104.93,104.81,5.0]
[1646193934224,53.21366823,104.92,104.81,5.0]
[1646193934422,0.37481145,104.91,104.81,5.0]
[1646193934624,51.30128247,104.9,104.75,131.8535]
[1646193934824,0.37481145,104.89,104.75,11.54]
[1646193935028,45.66054298,104.88,104.76,14.3128]
[1646193935326,0.37481145,104.87,104.76,14.3128]
[1646193935527,0.37481145,104.87,104.76,71.9728]
[1646193935726,0.37481145,104.87,104.77,154.01]
[1646193935926,45.66054298,104.88,104.75,57.66]
[1646193936329,45.66054298,104.88,104.78,57.66]
[1646193936527,45.16054298,104.88,104.78,57.66]
[1646193936830,45.16054298,104.88,104.78,154.01]
[1646193937427,45.16054298,104.88,104.77,154.01]
[1646193937633,45.16054298,104.88,104.78,168.3193]
[1646193937831,45.16054298,104.88,104.78,14.3093]
[1646193938029,45.16054298,104.88,104.78,110.6593]
[1646193938429,22.7042,104.89,104.8,154.01]
[1646193938635,22.7042,104.89,104.8,168.3182]
[1646193938835,48.6926,104.91,104.8,177.5702]
[1646193939032,76.3049,104.93,104.8,189.1102]
[1646193939232,116.41903654,104.94,104.8,189.1102]
[1646193939432,46.01797743,104.93,104.8,189.1102]
[1646193939629,47.77063011,104.93,104.8,179.8582]
[1646193939829,50.31967014,104.93,104.8,179.8582]
[1646193940030,51.58463011,104.93,104.8,179.8582]
[1646193940428,49.83197743,104.93,104.83,154.01]
[1646193940829,46.01797743,104.93,104.83,154.01]
[1646193941432,46.01797743,104.93,104.85,154.01]
[1646193941929,46.9168,104.95,104.85,154.01]
[1646193942429,46.9168,104.95,104.84,154.01]
[1646193942636,49.46584003,104.95,104.84,154.01]
[1646193942838,149.90544423,104.94,104.82,59.2086]
[1646193943038,55.60070677,104.94,104.82,59.2086]
[1646193943538,53.23874827,104.94,104.83,154.01]
[1646193943742,46.9168,104.95,104.83,154.01]
[1646193943940,46.9168,104.95,104.83,179.8533]
[1646193944341,46.9168,104.95,104.83,168.3133]
[1646193944740,84.30034003,104.97,104.85,154.01]
[1646193944941,84.30034003,104.97,104.84,5.0]
[1646193944942,84.30034003,104.97,104.87,168.3082]
[1646193945157,96.1828,104.98,104.87,168.3082]
[1646193945357,23.5694,104.98,104.87,168.3082]
[1646193945558,47.2764,104.99,104.87,168.3082]
[1646193945760,46.87156685,104.98,104.87,179.8482]
[1646193946557,2.54904003,105.01,104.87,179.8482]
[1646193946758,140.222,105.02,104.87,201.5484]
[1646193946960,140.222,105.02,104.9,154.01]
[1646193947158,140.222,105.02,104.92,71.9514]
[1646193947358,116.711,105.02,104.92,168.3014]
[1646193947559,59.3190555,105.01,104.92,14.2914]
[1646193948760,59.3190555,105.01,104.93,57.66]
[1646193948962,59.3190555,105.01,104.93,71.9505]
[1646193949159,112.9,105.02,104.93,78.9975]
[1646193949360,70.0708,105.03,104.93,78.9975]
[1646193949562,27.99694541,105.05,104.93,78.9975]
[1646193949762,27.99694541,105.05,104.99,57.66]
[1646193949961,5.0,105.05,104.99,57.66]
[1646193950161,5.0,105.05,104.99,64.992]
[1646193950361,5.0,105.05,105.0,14.2808]
[1646193950562,60.10679373,105.09,105.01,57.66]
[1646193950961,21.10350031,105.12,104.98,105.2575]
[1646193951165,21.10350031,105.12,104.99,5.0]
[1646193951363,6.35604003,105.12,104.99,6.894]
[1646193951762,6.35604003,105.12,104.99,103.244]
[1646193951962,63.7740736,105.12,104.99,9.44304003]
[1646193952163,78.0540736,105.12,105.01,14.2796]
[1646193952364,0.2958533,105.11,105.01,14.2796]
[1646193952768,81.2787676,105.12,105.01,14.2796]
[1646193953167,77.4717676,105.12,105.01,14.2796]
[1646193953364,0.26784566,105.11,105.0,5.0]
[1646193953571,11.54,105.1,104.96,47.6098]
[1646193953764,14.2854,105.08,104.96,52.6098]
[1646193953964,46.18778221,105.07,104.96,52.6098]
[1646193954366,46.18778221,105.07,104.97,14.2845]
[1646193955368,46.18778221,105.07,104.97,19.2845]
[1646193955567,5.77373403,105.09,104.97,14.2845]
[1646193955769,3.224694,105.09,104.98,96.35]
[1646193955967,160.274,105.1,105.01,14.2794]
[1646193956567,54.3570728,105.09,105.0,5.0]
[1646193956871,57.5817668,105.09,105.0,5.0]
[1646193957071,60.13080683,105.09,104.96,122.1888]
[1646193957266,57.5817668,105.09,104.98,5.0]
[1646193957467,54.3570728,105.09,104.99,14.2818]
[1646193957668,47.374,105.1,104.99,14.2818]
[1646193957867,1.11918642,105.11,105.0,156.55904003]
[1646193958067,105.65610917,105.14,105.0,156.55904003]
[1646193958268,24.3214,105.14,105.01,2.54904003]
[1646193958470,24.3214,105.14,105.04,96.35]
[1646193959474,24.3214,105.14,105.03,16.54]
[1646193959672,24.3214,105.14,105.05,14.2734]
[1646193959871,58.044393,105.13,105.05,14.2734]
[1646193960274,3.806,105.15,105.05,16.82244003]
[1646193960475,23.9335,105.17,105.05,23.20944003]
[1646193960871,25.67865966,105.17,105.05,53.2017969]
[1646193961074,25.67865966,105.17,105.05,38.9283969]
[1646193961275,25.67865966,105.17,105.03,16.51004003]
[1646193961276,61.05343109,105.16,105.03,16.51004003]
[1646193961473,0.27035884,105.15,105.03,16.51004003]
[1646193961675,64.85943109,105.16,105.03,16.51004003]
[1646193961977,46.9858579,105.14,105.04,57.66]
[1646193962574,46.9858579,105.14,105.03,16.51004003]
[1646193962775,48.8997923,105.14,105.03,30.78624003]
[1646193962974,65.72623233,105.14,105.03,30.78624003]
[1646193963575,65.72623233,105.14,105.03,2.54904003]
[1646193963776,44.74092773,105.12,105.02,5.0]
[1646193963980,11.54,105.11,105.02,5.0]
[1646193964178,62.99115722,105.1,104.99,14.2821]
[1646193964380,91.36329725,105.1,104.99,14.2821]
[1646193964681,60.90476059,105.1,104.99,14.2821]
[1646193965079,62.79143085,105.1,104.99,74.49114003]
[1646193965282,62.79143085,105.1,104.99,71.9421]
[1646193965478,62.79143085,105.1,104.99,14.2821]
[1646193965879,0.2148133,105.09,104.99,14.2821]
[1646193966079,77.07393085,105.1,104.99,14.2821]
[1646193966980,91.16297088,105.1,104.98,3.807]
[1646193967182,1.14548176,105.09,104.97,14.2851]
[1646193967379,1.9358846,105.07,104.97,71.9451]
[1646193967584,62.78420409,105.08,104.97,71.9451]
[1646193967780,62.78420409,105.08,104.97,14.2851]
[1646193968179,36.59894003,105.1,104.97,71.9451]
[1646193968380,38.54772994,105.1,104.97,14.2851]
[1646193968781,39.35543878,105.1,104.97,14.2851]
[1646193968988,36.80639875,105.1,104.97,16.83414003]
[1646193969188,24.45868991,105.1,104.98,57.66]
[1646193969388,5.0,105.12,105.01,71.9392]
[1646193969588,5.0,105.12,105.01,177.0192]
[1646193969893,4.61470884,105.15,105.02,2.65224132]
[1646193970187,0.47765321,105.18,105.02,2.65224132]
[1646193970188,0.47765321,105.18,105.05,154.01]
[1646193970388,0.47765321,105.18,105.06,11.54]
[1646193970590,0.47765321,105.18,105.07,154.01]
[1646193970987,0.47765321,105.18,105.08,15.343]
[1646193971192,0.47765321,105.18,105.09,201.5504]
[1646193971413,0.47765321,105.18,105.11,154.01]
[1646193971615,0.47765321,105.18,105.11,160.321]
[1646193972015,0.47765321,105.18,105.11,6.311]
[1646193972219,0.47765321,105.18,105.11,63.971]
[1646193972416,0.47765321,105.18,105.11,6.311]
[1646193972614,0.47765321,105.18,105.12,14.265]
[1646193973415,0.47765321,105.18,105.07,11.54]
[1646193973616,0.24817353,105.2,105.07,75.0]
[1646193973817,15.9028965,105.2,105.1,14.268]
[1646193974014,15.9028965,105.2,105.1,119.016]
[1646193974215,112.9,105.21,105.12,154.01]
[1646193974616,78.45259641,105.22,105.12,154.01]
[1646193974819,190.75735441,105.22,105.12,14.2654]
[1646193975019,39.199458,105.22,105.12,14.2654]
[1646193975217,24.933458,105.22,105.12,74.47444003]
[1646193975416,23.2447,105.22,105.12,16.81444003]
[1646193975619,29.31591585,105.22,105.12,14.2654]
[1646193975817,3.803,105.23,105.13,96.35]
[1646193976118,46.8892,105.24,105.13,98.89904003]
[1646193976323,46.8892,105.24,105.16,14.2594]
[1646193976518,24.1223,105.24,105.16,14.2594]
[1646193977417,60.28158858,105.28,105.16,80.3504]
[1646193977621,47.78158858,105.28,105.2,14.2529]
[1646193977821,47.78158858,105.28,105.17,14.08904003]
[1646193978419,47.78158858,105.28,105.18,2.54904003]
[1646193978619,47.78158858,105.28,105.18,10.41704003]
[1646193978821,47.78158858,105.28,105.18,7.868]
[1646193979223,47.78158858,105.28,105.18,10.41704003]
[1646193979423,47.78158858,105.28,105.19,69.2]
[1646193979820,47.78158858,105.28,105.2,64.01004003]
[1646193980019,47.78158858,105.28,105.21,96.35]
[1646193980224,47.78158858,105.28,105.21,176.31404003]
[1646193980422,0.00738858,105.28,105.23,154.01]
[1646193980622,0.00738858,105.28,105.25,154.01]
[1646193980824,0.00738858,105.28,105.25,171.593]
[1646193981022,0.00738858,105.28,105.26,2.54904003]
[1646193981222,0.00738858,105.28,105.27,170.55]
[1646193981427,0.1044,105.3,105.27,170.55]
[1646193981622,60.69413772,105.37,105.27,183.47067092]
[1646193982020,60.69413772,105.37,105.27,168.09904003]
[1646193982422,59.19413772,105.37,105.27,168.09904003]
[1646193983124,119.91070303,105.37,105.27,168.09904003]
[1646193983324,119.91070303,105.37,105.29,101.35]
[1646193983525,119.91070303,105.37,105.29,16.54]
[1646193983723,119.91070303,105.37,105.25,16.64464003]
[1646193983924,119.91070303,105.37,105.26,11.54]
[1646193984124,0.22300163,105.36,105.23,6.34604003]
[1646193984323,46.81805697,105.35,105.23,3.797]
[1646193984525,46.81805697,105.35,105.23,11.54]
[1646193984927,46.81805697,105.35,105.29,5.0]
[1646193985127,46.81805697,105.35,105.23,11.54]
[1646193985335,0.24869777,105.34,105.23,11.54]
[1646193985826,47.58888933,105.35,105.23,11.54]
[1646193986127,0.2262991,105.34,105.26,5.0]
[1646193986930,2.77533913,105.34,105.2,22.6045]
[1646193987128,54.9776329,105.33,105.2,22.6045]
[1646193987329,0.45429403,105.32,105.2,14.08904003]
[1646193987529,43.91363295,105.31,105.2,2.54904003]
[1646193988035,48.51718936,105.31,105.18,5.0]
[1646193988232,60.11520487,105.29,105.18,5.0]
[1646193988431,98.23112276,105.26,105.18,5.0]
[1646193988631,145.24512274,105.25,105.12,96.35]
[1646193988832,48.89512274,105.25,105.14,154.01]
[1646193989032,46.9234528,105.25,105.14,154.01]
[1646193989231,14.08904003,105.28,105.14,159.01]
[1646193989431,13.24287238,105.28,105.14,159.01]
[1646193990032,2.54904003,105.3,105.16,154.01]
[1646193990232,49.15433687,105.31,105.16,154.01]
[1646193990435,51.07238862,105.31,105.18,154.01]
[1646193991342,51.07238862,105.31,105.18,159.01]
[1646193991531,51.07238862,105.31,105.18,154.01]
[1646193992133,49.15433687,105.31,105.18,170.80974003]
[1646193992334,49.15433687,105.31,105.18,182.34974003]
[1646193992937,22.659,105.33,105.18,182.34974003]
[1646193993138,24.57909708,105.33,105.19,0.31749325]
[1646193993433,22.659,105.33,105.2,173.09904003]
[1646193993633,22.659,105.33,105.2,175.90104003]
[1646193993835,44.95220236,105.32,105.2,175.90104003]
[1646193994436,46.63945181,105.32,105.22,154.01]
[1646193995238,46.63945181,105.32,105.21,159.01]
[1646193995539,46.63945181,105.32,105.21,154.01]
[1646193995741,46.63945181,105.32,105.2,96.35]
[1646193996339,46.63945181,105.32,105.21,57.66]
[1646193997139,46.63945181,105.32,105.2,101.35]
[1646193997339,46.63945181,105.32,105.2,159.01]
[1646193997565,46.63945181,105.32,105.2,154.01]
[1646193997841,0.20060922,105.31,105.2,154.01]